{"text_format":"1","workbook":"xlsx","n_sheets":1,"sheets":["MANUAL LIST FEB 20 2020"],"not_rendered":{"charts":0,"images":2,"macros":1,"external_links":0,"defined_names":2,"comments":2,"pivot_tables":0},"unopened":[],"bounds":{"document_bytes":16777216,"sheet_cells":100000,"rows_first":2000,"rows_last":500,"rows_between":2000,"halvings":0,"cell_chars":16384,"cell_head_chars":4096},"cells_cut":0,"cells_raw":0,"read":"whole","date_system":"1900"}

{"sheet":"MANUAL LIST FEB 20 2020","index":0,"n_rows":104,"n_cols":6,"rows_kept":104,"cut":false,"hidden":false,"merged":[[4,0,4,1],[7,0,7,1],[66,0,66,1]]}
[]
[]
[null,"2022-11-10"]
[]
["FY 23, COUNTY OF EL PASO, TEXAS\nVOUCHERS SELECTED FOR PAYMENT"]
["Check Date: ","2022-11-14"]
[]
["EL PASO TREASURY CONSOLIDATED FUND ACCOUNT:"]
["Vendor Name","Amount Cleared for Payment","Check Date","Check Number","Amount","Days"]
[]
["ARBITRAGE COMPLIANCE SPECIALISTS, INC (VARIOUS ACCOUNTS)",5700,null,null,null,{"$f":"+C11-$B$6","v":-44879}]
[null,null,null,null,null,{"$f":"+C12-$B$6","v":-44879}]
["GIBSON RUDDOCK PATTERSON LLC (VARIOUS ACCOUNTS)",10000,null,null,null,-44879]
[null,null,null,null,null,-44879]
["EL PASO TEXAS FLAGS ACROSS AMERICA (VARIOUS ACCOUNTS)",2875.52,null,null,null,-44879]
[null,null,null,null,null,-44879]
["RASBERRY & ASSOCIATES LLC (VARIOUS ACCOUNTS)",600,null,null,null,-44879]
[null,null,null,null,null,-44879]
["MACIELLE SANCHEZ (VARIOUS ACCOUNTS)",300,null,null,null,{"$f":"+C19-$B$6","v":-44879}]
[null,null,null,null,null,-44879]
["RAY VALVERDE (VARIOUS ACCOUNTS)",4000,null,null,null,-44879]
[null,null,null,null,null,-44879]
["ARNOLD DAVIS, JR.INVESTIGATIONS STATELINE PROCESS SERVICE (VARIOUS ACCOUNTS)",1000,null,null,null,-44879]
[null,null,null,null,null,-44879]
["NICK GALLARDO (VARIOUS ACCOUNTS)",100,null,null,null,-44879]
[null,null,null,null,null,-44879]
["JOE VALVERDE (VARIOUS ACCOUNTS)",500,null,null,null,-44879]
[null,null,null,null,null,-44879]
["AT & T (VARIOUS ACCOUNTS)",40000,null,null,null,-44879]
[null,null,null,null,null,-44879]
["VERIZON (VARIOUS ACCOUNTS)",25000,null,null,null,-44879]
[null,null,null,null,null,-44879]
["WINDSTREAM (VARIOUS ACCOUNTS)",10000,null,null,null,-44879]
[null,null,null,null,null,-44879]
["LIFE AMBULANCE (VARIOUS ACCOUNTS)",34000,null,null,null,-44879]
[null,null,null,null,null,-44879]
["MIRACLE DELIVERY (VARIOUS ACCOUNTS)",5000,null,null,null,-44879]
[null,null,null,null,null,-44879]
["TYLER TECH (VARIOUS ACCOUNTS)",11120,null,null,null,-44879]
[null,null,null,null,null,-44879]
["KEYSTONE GC (VARIOUS ACCOUNTS)",14115,null,null,null,-44879]
[null,null,null,null,null,-44879]
["EL PASO COUNTY HOSPITAL DIST (VARIOUS ACCOUNTS)",186,null,null,null,-44879]
[null,null,null,null,null,-44879]
["ALVARO MEDINA (VARIOUS ACCOUNTS)",14954]
[]
["ROSE BUTLER (GF-JPD-MILEAGE REIMB-LOCAL)",69.62]
[]
["PATRICIA RENEE MORA (GF-JPD-MILEAGE REIMB-LOCAL)",39.78]
[]
["VIOLETA MENA (GF-JPD-MILEAGE REIMB-LOCAL)",267.35000000000002]
[]
["PUBLIC SECTOR PERSONNEL CONSULTANTS, INC (GF-HR-CONTR SVC-GEN)",3000]
[]
["DEL MAR CONTRACTING (GF-EPCMP-PROF SVC-GEN)",12000]
[]
["PASO DEL NORTE COMMUNITY FOUNDATION (SG-ARPLAN21-OPERATING EX)",4130]
[]
["CONTRACTORS BARRICADE SERVICE (VARIOUS ACCOUNTS)",19140,null,null,null,-44879]
[null,null,null,null,null,-44879]
["CONTRACTORS BARRICADE SERVICE (SG-ARPLAN21-OPERATING EX)",10950,null,null,null,-44879]
[null,null,null,null,null,-44879]
["FLYERS ENERGY, LLC (VARIOUS)",1440.31,null,null,null,-44879]
[null,null,null,null,null,-44879]
["EL PASO COUNTY COMMUNITY SUPERVISION AND (SG-GRISE22-OPERATING EXP)",15000,null,null,null,-44879]
[null,null,null,null,null,-44879]
["WIRE TRANSFERS: "]
["EP COUNTY JURORS PAYROLL ACCT (GF-DISTCLK-JURY FEES)",16000]
[]
["EL PASO COUNTY WORKERS COMP FUND (VARIOUS ACCOUNTS)",42500]
[]
[]
[]
[]
[]
[]
[]
[]
[]
[]
[]
[]
[]
[null,{"$f":"SUM(B11:B66)","v":245487.58000000002}]
[]
[]
[]
[]
[]
[]
[]
[]
[]
[]
[]
[]
[]
[]
[]
[]
[]
[]
[]
[null,null,null," "]